bitfinex/quotes_BTCUSD_20230111
["timestamp","ask_amount","ask_price","bid_price","bid_amount"]
[1673424503639,4.89798168,17452.0,17451.0,0.63712603]
[1673424504153,4.31827016,17452.0,17451.0,0.63712603]
[1673424505184,4.52443734,17452.0,17451.0,0.63712603]
[1673424505459,5.10414886,17452.0,17451.0,0.63712603]
[1673424506456,4.52443734,17452.0,17451.0,0.63712603]
[1673424507999,4.4670597,17452.0,17451.0,0.63712603]
[1673424508783,4.52443734,17452.0,17451.0,0.63712603]
[1673424510691,4.4670597,17452.0,17451.0,0.63712603]
[1673424511515,4.4670597,17452.0,17451.0,0.48114022]
[1673424512035,5.04677122,17452.0,17451.0,0.48114022]
[1673424512296,4.4670597,17452.0,17451.0,0.48114022]
[1673424512556,5.04677122,17452.0,17451.0,0.48114022]
[1673424513828,5.10414886,17452.0,17451.0,0.48114022]
[1673424514616,5.10414886,17452.0,17451.0,0.25822007]
[1673424516204,4.89798168,17452.0,17451.0,0.25822007]
[1673424516655,4.84060404,17452.0,17451.0,0.25822007]
[1673424518527,4.84062404,17452.0,17451.0,0.25822007]
[1673424519080,4.89800168,17452.0,17451.0,0.25822007]
[1673424522638,4.84062404,17452.0,17451.0,0.25822007]
[1673424522880,5.47739274,17452.0,17451.0,0.25822007]
[1673424528610,5.4200151,17452.0,17451.0,0.25822007]
[1673424528850,5.47739274,17452.0,17451.0,0.25822007]
[1673424529838,5.19087274,17452.0,17451.0,0.25822007]
[1673424530077,5.47739274,17452.0,17451.0,0.25822007]
[1673424530549,4.89800168,17452.0,17451.0,0.25822007]
[1673424531537,4.89800168,17452.0,17451.0,0.22254433]
[1673424534839,4.89800168,17452.0,17451.0,0.22215108]
[1673424535092,4.31829016,17452.0,17451.0,0.22215108]
[1673424535611,4.45905332,17452.0,17451.0,0.22215108]
[1673424535871,4.89859123,17452.0,17451.0,0.22215108]
[1673424536864,4.89768122,17452.0,17451.0,0.22215108]
[1673424537133,5.47796108,17452.0,17451.0,0.22215108]
[1673424537619,4.89768122,17452.0,17451.0,0.22215108]
[1673424539163,4.88268122,17452.0,17451.0,0.21015108]
[1673424539411,5.64310189,17452.0,17451.0,0.21215108]
[1673424539665,5.6431161,17452.0,17451.0,0.21215108]
[1673424540664,4.95468122,17452.0,17451.0,0.21215108]
[1673424541194,4.95556955,17452.0,17451.0,0.21215108]
[1673424541705,4.89819191,17452.0,17451.0,0.21215108]
[1673424548665,4.61167191,17452.0,17451.0,0.21215108]
[1673424551476,4.61167191,17452.0,17451.0,0.18559311]
[1673424555495,4.6116248,17452.0,17451.0,0.18559311]
[1673424568896,4.8981348,17452.0,17451.0,0.18559311]
[1673424571541,4.04932252,17452.0,17451.0,0.16606583]
[1673424571797,4.19008505,17452.0,17451.0,0.16606583]
[1673424572099,4.62962296,17452.0,17451.0,0.16606583]
[1673424575140,4.89821296,17452.0,17451.0,0.16606583]
[1673424575395,5.46421252,17452.0,17451.0,0.16606583]
[1673424575919,5.2252155,17452.0,17451.0,0.16606583]
[1673424576179,4.60991044,17452.0,17451.0,0.16606583]
[1673424576686,4.02961,17452.0,17451.0,0.16606583]
[1673424579706,4.61169296,17452.0,17451.0,0.16606583]
[1673424581355,4.25267496,17452.0,17451.0,0.16606583]
[1673424581866,4.61169296,17452.0,17451.0,0.16606583]
[1673424586878,5.19108402,17452.0,17451.0,0.16606583]
[1673424587401,4.89821296,17452.0,17451.0,0.16606583]
[1673424591428,4.89821296,17452.0,17451.0,0.14858218]
[1673424594987,4.31791252,17452.0,17451.0,0.14858218]
[1673424595514,5.00410368,17452.0,17451.0,0.14858218]
[1673424596031,4.31791252,17452.0,17451.0,0.14858218]
[1673424596330,4.85274104,17452.0,17451.0,0.14858218]
[1673424596860,5.43287639,17452.0,17451.0,0.14858218]
[1673424599655,4.85274104,17452.0,17451.0,0.14858218]
[1673424600409,5.43284638,17452.0,17451.0,0.14858218]
[1673424601211,5.49022402,17452.0,17451.0,0.14858218]
[1673424602746,4.91011868,17452.0,17451.0,0.14858218]
[1673424603772,4.92980911,17452.0,17451.0,0.14858218]
[1673424604249,4.87243147,17452.0,17451.0,0.14858218]
[1673424605978,5.452503,17452.0,17451.0,0.14858218]
[1673424606221,4.87243147,17452.0,17451.0,0.14858218]
[1673424606475,5.45250061,17452.0,17451.0,0.14858218]
[1673424606723,4.87243147,17452.0,17451.0,0.14858218]
[1673424606975,5.45250153,17452.0,17451.0,0.14858218]
[1673424608646,4.91767301,17452.0,17451.0,0.14858218]
[1673424611422,4.33760295,17452.0,17451.0,0.14858218]
[1673424611681,4.33760295,17452.0,17451.0,0.13372397]
[1673424612695,4.47815593,17452.0,17451.0,0.13372397]
[1673424612939,4.91767853,17452.0,17451.0,0.13372397]
[1673424614705,5.49706959,17452.0,17451.0,0.13372397]
[1673424614969,5.49706807,17452.0,17451.0,0.13372397]
[1673424615255,4.91699401,17452.0,17451.0,0.13372397]
[1673424615501,5.49706682,17452.0,17451.0,0.13372397]
[1673424615753,4.91767576,17452.0,17451.0,0.13349479]
[1673424616553,4.33760295,17452.0,17451.0,0.13349479]
[1673424616783,4.39498059,17452.0,17451.0,0.13349479]
[1673424617040,4.33760295,17452.0,17451.0,0.13349479]
[1673424617544,5.55699317,17452.0,17451.0,0.08063438]
[1673424617814,4.92604039,17452.0,17451.0,0.08063438]
[1673424618056,5.61446377,17452.0,17451.0,0.08063438]
[1673424618323,4.39498059,17452.0,17451.0,0.08063438]
[1673424618777,5.08340449,17452.0,17451.0,0.08063438]
[1673424619386,5.08339714,17452.0,17451.0,0.08063438]
[1673424621240,5.78339715,17452.0,17451.0,0.08063438]
[1673424622854,5.08339714,17452.0,17451.0,0.08063438]
[1673424623406,5.6627882,17452.0,17451.0,0.08063438]
[1673424624213,5.60541056,17452.0,17451.0,0.08063438]
[1673424626113,5.44271056,17452.0,17451.0,0.08063438]
[1673424627427,4.8633195,17452.0,17451.0,0.04962456]
[1673424628990,4.92069714,17452.0,17451.0,0.04962456]
[1673424629538,5.62069715,17452.0,17451.0,0.04962456]
[1673424630364,5.62077991,17452.0,17451.0,0.04962456]
[1673424631652,5.62077991,17452.0,17451.0,0.04466211]
[1673424632420,5.78507991,17452.0,17451.0,0.04466211]
[1673424634661,6.36447097,17452.0,17451.0,0.04466211]
[1673424637398,6.36447097,17452.0,17451.0,0.02780244]
[1673424637655,5.78507991,17452.0,17451.0,0.02780244]
[1673424637909,6.29997991,17452.0,17451.0,0.02780244]
[1673424640907,5.54569484,17452.0,17451.0,0.02780244]
[1673424641194,4.85727829,17452.0,17451.0,0.02780244]
[1673424642469,5.19170812,17452.0,17451.0,0.02780244]
[1673424643482,5.88249569,17452.0,17451.0,0.02780244]
[1673424646258,6.5824957,17452.0,17451.0,0.02780244]
[1673424647253,6.63987334,17452.0,17451.0,0.02780244]
[1673424647501,6.63987334,17452.0,17451.0,0.01723219]
[1673424648273,6.30544351,17452.0,17451.0,0.01723219]
[1673424648776,6.24806587,17452.0,17451.0,0.01723219]
[1673424651272,5.54806586,17452.0,17451.0,0.01723219]
[1673424651519,4.49826029,17452.0,17451.0,0.01550898]
[1673424651767,5.07856354,17452.0,17451.0,0.01550898]
[1673424652021,5.07856497,17452.0,17451.0,0.01550898]
[1673424652526,5.07856192,17452.0,17451.0,0.01550898]
[1673424653029,5.43757992,17452.0,17451.0,0.01550898]
[1673424653522,5.07856192,17452.0,17451.0,0.01550898]
[1673424655727,4.46344192,17452.0,17451.0,0.01550898]
[1673424656485,3.86353587,17452.0,17451.0,0.01550898]
[1673424656739,2.84369633,17452.0,17451.0,0.01550898]
[1673424657131,3.58685548,17452.0,17451.0,0.01550898]
[1673424657584,3.13956871,17452.0,17451.0,0.01550898]
[1673424657825,3.67457892,17452.0,17451.0,0.01550898]
[1673424658561,3.13956871,17452.0,17451.0,0.01550898]
[1673424659081,3.61973331,17452.0,17451.0,0.01550898]
[1673424659318,3.13956871,17452.0,17451.0,0.01550898]
[1673424659817,3.43956871,17452.0,17451.0,0.01550898]
[1673424660086,2.85155398,17452.0,17451.0,0.01550898]
[1673424660329,3.79290286,17452.0,17451.0,0.01550898]
[1673424660572,5.8086955,17452.0,17451.0,0.00955761]
[1673424660819,5.22839387,17452.0,17451.0,0.00955761]
[1673424661064,5.80813695,17452.0,17451.0,0.00955761]
[1673424661559,5.22839387,17452.0,17451.0,0.00955761]
[1673424661811,5.92839388,17452.0,17451.0,0.00955761]
[1673424662554,6.5081424,17452.0,17451.0,0.00955761]
[1673424663525,5.0909424,17452.0,17451.0,0.00955761]
[1673424663760,3.45217587,17452.0,17451.0,0.00955761]
[1673424664017,2.84556234,17452.0,17451.0,0.00955761]
[1673424664252,3.30345298,17452.0,17451.0,0.00955761]
[1673424664496,3.13912081,17452.0,17451.0,0.00955761]
[1673424664771,3.57706132,17452.0,17451.0,0.00955761]
[1673424665016,1.96135007,17452.0,17451.0,0.00955761]
[1673424665263,1.96313259,17452.0,17451.0,0.00955761]
[1673424665501,1.24467659,17452.0,17451.0,0.00955761]
[1673424665737,0.79030261,17452.0,17451.0,0.00955761]
[1673424666015,1.1337414,17452.0,17451.0,0.00955761]
[1673424666254,0.96191107,17452.0,17451.0,0.00955761]
[1673424666734,1.53491107,17452.0,17451.0,0.00955761]
[1673424667473,2.10791107,17452.0,17451.0,0.00955761]
[1673424668001,2.45134986,17452.0,17451.0,0.00955761]
[1673424668264,2.10791107,17452.0,17451.0,0.00955761]
[1673424669990,1.85033198,17452.0,17451.0,0.00955761]
[1673424670471,1.8521145,17452.0,17451.0,0.00955761]
[1673424670714,1.85033198,17452.0,17451.0,0.00955761]
[1673424672195,1.67872352,17452.0,17451.0,0.00955761]
[1673424673145,1.68050604,17452.0,17451.0,0.00955761]
[1673424673385,1.67872352,17452.0,17451.0,0.00955761]
[1673424674147,1.68050604,17452.0,17451.0,0.00955761]
[1673424675102,1.67872352,17452.0,17451.0,0.00955761]
[1673424675362,1.68050604,17452.0,17451.0,0.00955761]
[1673424675844,1.67872352,17452.0,17451.0,0.00955761]
[1673424676337,1.68050604,17452.0,17451.0,0.00955761]
[1673424677053,1.85033198,17452.0,17451.0,0.00955761]
[1673424677304,1.8521145,17452.0,17451.0,0.00955761]
[1673424677601,1.68050604,17452.0,17451.0,0.00955761]
[1673424679074,2.37958964,17452.0,17451.0,0.00955761]
[1673424679329,2.80899906,17452.0,17451.0,0.00955761]
[1673424681167,2.80721654,17452.0,17451.0,0.00955761]
[1673424681379,2.80721654,17452.0,17451.0,0.0094673]
[1673424684579,2.80899906,17452.0,17451.0,0.0094673]
[1673424686681,2.80721654,17452.0,17451.0,0.0094673]
[1673424688259,2.80899906,17452.0,17451.0,0.0094673]
[1673424692859,2.80721654,17452.0,17451.0,0.0094673]
[1673424694390,2.80703115,17452.0,17451.0,0.0094673]
[1673424696463,2.98074649,17452.0,17451.0,0.0094673]
[1673424696760,3.1654363,17452.0,17451.0,0.0094673]
[1673424697238,2.82199751,17452.0,17451.0,0.0094673]
[1673424697510,3.16524796,17452.0,17451.0,0.0094673]
[1673424698568,2.82199751,17452.0,17451.0,0.0094673]
[1673424698808,3.16526586,17452.0,17451.0,0.0094673]
[1673424700685,3.19779084,17452.0,17451.0,0.0094673]
[1673424700911,2.41658198,17452.0,17451.0,0.0094673]
[1673424701173,3.31184056,17452.0,17451.0,0.0094673]
[1673424702194,2.88251404,17452.0,17451.0,0.0094673]
[1673424702699,2.38725546,17452.0,17451.0,0.0094673]
[1673424703733,2.93939845,17452.0,17451.0,0.00939444]
[1673424703986,2.93939845,17452.0,17449.0,0.000345]
[1673424703987,0.59060556,17451.0,17449.0,0.000345]
[1673424704246,1.57422252,17450.0,17449.0,0.000345]
[1673424704539,1.74602444,17450.0,17449.0,0.000345]
[1673424705014,1.57422252,17450.0,17449.0,0.000345]
[1673424705255,1.57600504,17450.0,17449.0,0.000345]
[1673424705503,1.57600504,17450.0,17449.0,0.008345]
[1673424705504,1.58800504,17450.0,17449.0,0.008345]
[1673424706021,1.58622252,17450.0,17449.0,0.008345]
[1673424706288,2.18492616,17450.0,17449.0,0.008345]
[1673424706549,2.16540594,17450.0,17449.0,0.008345]
[1673424706802,2.1441032,17450.0,17449.0,0.008345]
[1673424707329,2.14588572,17450.0,17449.0,0.008345]
[1673424708877,3.24642586,17450.0,17449.0,0.008345]
[1673424709118,2.71895072,17450.0,17449.0,0.008345]
[1673424711145,2.7171682,17450.0,17449.0,0.008345]
[1673424714759,2.71895072,17450.0,17449.0,0.008345]
[1673424715460,2.71884244,17450.0,17449.0,0.008345]
[1673424715984,2.31705992,17450.0,17449.0,0.008345]
[1673424716960,2.31884244,17450.0,17449.0,0.008345]
[1673424717700,2.31705992,17450.0,17449.0,0.008345]
[1673424717950,2.14539771,17450.0,17449.0,0.008345]
[1673424721240,2.31705992,17450.0,17449.0,0.008345]
[1673424721515,2.84453506,17450.0,17449.0,0.008345]
[1673424721751,2.84631758,17450.0,17449.0,0.008345]
[1673424721999,3.21559155,17450.0,17449.0,0.008345]
[1673424722770,3.01807687,17450.0,17449.0,0.008345]
[1673424723288,3.21559105,17450.0,17449.0,0.008345]
[1673424728721,3.21380853,17450.0,17449.0,0.008345]
[1673424728970,3.27407357,17450.0,17449.0,0.008345]
[1673424729259,3.27407352,17450.0,17449.0,0.008345]
[1673424729493,2.31720015,17450.0,17449.0,0.008345]
[1673424729752,2.84467529,17450.0,17449.0,0.008345]
[1673424732297,2.84645781,17450.0,17449.0,0.008345]
[1673424736406,3.27585604,17450.0,17449.0,0.008345]
[1673424736635,2.84645781,17450.0,17449.0,0.008345]
[1673424738479,2.84467529,17450.0,17449.0,0.008345]
[1673424741810,3.27407352,17450.0,17449.0,0.008345]
[1673424742066,2.84645781,17450.0,17449.0,0.008345]
[1673424742578,2.84467529,17450.0,17449.0,0.008345]
[1673424743087,2.84645781,17450.0,17449.0,0.008345]
[1673424746133,3.01807687,17450.0,17449.0,0.00828357]
[1673424746383,2.84652104,17450.0,17449.0,0.00828357]
[1673424746890,2.84473852,17450.0,17449.0,0.00828357]
[1673424748859,2.31726338,17450.0,17449.0,0.00828357]
[1673424749145,2.14563578,17450.0,17449.0,0.00828357]
[1673424749913,2.84473852,17450.0,17449.0,0.00828357]
[1673424750167,2.84652104,17450.0,17449.0,0.00828357]
[1673424750684,2.84473852,17450.0,17449.0,0.00828357]
[1673424751184,2.84652104,17450.0,17449.0,0.00828357]
[1673424751704,2.84473852,17450.0,17449.0,0.00828357]
[1673424752209,2.84652104,17450.0,17449.0,0.00828357]
[1673424752725,2.84473852,17450.0,17449.0,0.00828357]
[1673424753470,2.84652104,17450.0,17449.0,0.00828357]
[1673424753736,2.84473852,17450.0,17449.0,0.00828357]
[1673424754732,2.84652104,17450.0,17449.0,0.00828357]
[1673424756113,2.67488447,17450.0,17449.0,0.00828357]
[1673424756337,3.01840305,17450.0,17449.0,0.00828357]
[1673424756591,2.84652104,17450.0,17449.0,0.00828357]
[1673424756899,3.01839981,17450.0,17449.0,0.00828357]
[1673424757154,2.67488123,17450.0,17449.0,0.00828357]
[1673424757629,3.01839981,17450.0,17449.0,0.00828357]
[1673424757885,2.67488123,17450.0,17449.0,0.00828357]
[1673424758169,2.67309871,17450.0,17449.0,0.00828357]
[1673424758611,3.01661729,17450.0,17449.0,0.00828357]
[1673424758873,2.84473852,17450.0,17449.0,0.00828357]
[1673424759436,3.84473852,17450.0,17449.0,0.00828357]
[1673424761428,0.4,17449.0,17448.0,0.16608393]
[1673424761681,1.12649584,17449.0,17448.0,0.16608393]
[1673424761962,0.95461222,17449.0,17448.0,0.16608393]
[1673424762196,0.95639474,17449.0,17448.0,0.16608393]
[1673424762423,0.95461222,17449.0,17448.0,0.16608393]
[1673424762691,0.57061222,17449.0,17448.0,0.16708393]
[1673424764758,0.74427836,17449.0,17448.0,0.16708393]
[1673424765479,0.57061222,17449.0,17448.0,0.16708393]
[1673424766263,0.74249584,17449.0,17448.0,0.16708393]
[1673424766514,1.14249584,17449.0,17448.0,0.001]
[1673424767283,1.14427836,17449.0,17448.0,0.001]
[1673424768346,1.14427836,17449.0,17448.0,0.0009334]
[1673424768579,1.40212076,17449.0,17448.0,0.0009334]
[1673424772383,1.14427836,17449.0,17448.0,0.17285622]
[1673424773138,1.38612076,17449.0,17448.0,0.17192282]
[1673424773870,1.12827836,17449.0,17448.0,0.17192282]
[1673424774119,1.12827836,17449.0,17448.0,0.17292282]
[1673424774120,1.14427836,17449.0,17448.0,0.17292282]
[1673424774378,1.12827836,17449.0,17448.0,0.17192282]
[1673424774634,1.14427836,17449.0,17448.0,0.17292282]
[1673424776186,1.14249584,17449.0,17448.0,0.17292282]
[1673424776692,1.40033824,17449.0,17448.0,0.17292282]
[1673424777243,1.40033824,17449.0,17448.0,0.001]
[1673424777940,1.92781338,17449.0,17448.0,0.001]
[1673424779447,2.09944834,17449.0,17448.0,0.001]
[1673424779699,2.10123086,17449.0,17448.0,0.001]
[1673424779942,2.10123086,17449.0,17448.0,0.251]
[1673424780634,2.67432886,17449.0,17448.0,0.251]
[1673424781621,2.50273632,17449.0,17448.0,0.251]
[1673424782117,2.67432886,17449.0,17448.0,0.251]
[1673424785135,2.27432886,17449.0,17448.0,0.251]
[1673424785395,2.27254634,17449.0,17448.0,0.251]
[1673424785614,2.10091244,17449.0,17448.0,0.251]
[1673424785881,1.5734373,17449.0,17448.0,0.251]
[1673424788898,1.57521982,17449.0,17448.0,0.251]
[1673424790127,1.5734373,17449.0,17448.0,0.251]
[1673424790384,1.57521982,17449.0,17448.0,0.251]
[1673424794650,1.97521982,17449.0,17448.0,0.251]
[1673424794907,2.50269496,17449.0,17448.0,0.251]
[1673424796463,2.67432886,17449.0,17448.0,0.251]
[1673424798250,2.27254634,17449.0,17448.0,0.25112684]
[1673424798525,2.10089992,17449.0,17448.0,0.251]
[1673424801898,2.50268244,17449.0,17448.0,0.251]
[1673424802146,2.84620102,17449.0,17448.0,0.251]
[1673424802403,2.67432886,17449.0,17448.0,0.251]
[1673424814998,2.27432886,17449.0,17448.0,0.251]
[1673424817583,2.27254634,17449.0,17448.0,0.251]
[1673424821196,2.67254634,17449.0,17448.0,0.251]
[1673424821461,2.67432886,17449.0,17448.0,0.251]
[1673424822718,2.27432886,17449.0,17448.0,0.251]
[1673424822969,2.67432886,17449.0,17448.0,0.251]
[1673424823228,3.62995781,17449.0,17448.0,0.251]
[1673424824809,3.61395781,17449.0,17448.0,0.25]
[1673424825044,3.61895781,17449.0,17448.0,0.251]
[1673424827592,3.40798269,17449.0,17448.0,0.251]
[1673424828353,3.23634403,17449.0,17448.0,0.251]
[1673424828614,3.40798269,17449.0,17448.0,0.251]
[1673424829890,3.23634744,17449.0,17448.0,0.251]
[1673424830425,3.66574567,17449.0,17448.0,0.251]
[1673424830954,3.61870045,17449.0,17448.0,0.251]
[1673424834536,3.27518187,17449.0,17448.0,0.251]
[1673424835119,3.61887505,17449.0,17448.0,0.251]
[1673424835369,3.61887991,17449.0,17448.0,0.251]
[1673424837618,3.27518187,17449.0,17448.0,0.251]
[1673424838655,3.40636154,17449.0,17448.0,0.251]
[1673424839171,3.61697239,17449.0,17448.0,0.251]
[1673424839394,3.61693714,17449.0,17448.0,0.251]
[1673424840262,3.40636154,17449.0,17448.0,0.251]
[1673424840455,3.66399367,17449.0,17448.0,0.251]
[1673424840773,2.83459544,17449.0,17448.0,0.251]
[1673424842319,2.83637796,17449.0,17448.0,0.251]
[1673424847738,2.88364699,17449.0,17448.0,0.251]
[1673424849516,2.70991425,17449.0,17448.0,0.251]
[1673424852909,2.71169677,17449.0,17448.0,0.251]
[1673424853166,2.70991425,17449.0,17448.0,0.251]
[1673424854211,2.45406464,17449.0,17448.0,0.251]
[1673424854937,1.87918412,17449.0,17448.0,0.251]
[1673424855181,1.88096664,17449.0,17448.0,0.251]
[1673424855427,1.87918412,17449.0,17448.0,0.251]
[1673424856210,1.35170898,17449.0,17448.0,0.251]
[1673424856472,1.3534915,17449.0,17448.0,0.251]
[1673424856989,1.35170898,17449.0,17448.0,0.251]
[1673424857509,1.17997925,17449.0,17448.0,0.251]
[1673424857759,1.70745439,17449.0,17448.0,0.001]
[1673424858018,2.27918412,17449.0,17448.0,0.001]
[1673424858524,2.10745439,17449.0,17448.0,0.001]
[1673424859344,2.27918412,17449.0,17448.0,0.001]
[1673424860845,2.28096664,17449.0,17448.0,0.001]
[1673424861103,2.85406464,17449.0,17448.0,0.001]
[1673424861357,2.28096664,17449.0,17448.0,0.001]
[1673424861612,2.85406464,17449.0,17448.0,0.001]
[1673424864834,3.11169677,17449.0,17448.0,0.001]
[1673424865573,2.85406464,17449.0,17448.0,0.001]
[1673424866068,3.11169677,17449.0,17448.0,0.001]
[1673424866822,2.85406464,17449.0,17448.0,0.001]
[1673424871077,3.11169677,17449.0,17448.0,0.001]
[1673424875305,3.28364699,17449.0,17448.0,0.001]
[1673424878694,1.60819333,17449.0,17448.0,0.001]
[1673424878991,1.53435639,17449.0,17448.0,0.17304966]
[1673424879234,1.53435639,17449.0,17448.0,0.17292282]
[1673424879490,1.53435639,17449.0,17448.0,0.001]
[1673424879744,2.27916139,17449.0,17448.0,0.001]
[1673424880830,2.53679352,17449.0,17448.0,0.001]
[1673424882279,2.53857604,17449.0,17448.0,0.001]
[1673424882522,2.28094391,17449.0,17448.0,0.001]
[1673424883023,3.11167404,17449.0,17448.0,0.001]
[1673424884288,3.28364699,17449.0,17448.0,0.001]
[1673424887848,3.28186447,17449.0,17448.0,0.001]
[1673424890109,3.7112627,17449.0,17448.0,0.001]
[1673424890367,3.28176991,17449.0,17448.0,0.001]
[1673424891119,3.15655592,17449.0,17448.0,0.001]
[1673424891372,3.06171835,17449.0,17448.0,0.001]
[1673424891635,3.06350087,17449.0,17448.0,0.001]
[1673424891867,3.49564358,17449.0,17448.0,0.001]
[1673424892162,3.71877934,17449.0,17448.0,0.001]
[1673424892414,3.71876949,17449.0,17448.0,0.001]
[1673424892670,3.3237565,17449.0,17448.0,0.001]
[1673424893425,3.31989506,17449.0,17448.0,0.001]
[1673424897485,3.14789545,17449.0,17448.0,0.001]
[1673424898739,3.31989506,17449.0,17448.0,0.001]
[1673424899486,3.49178214,17449.0,17448.0,0.001]
[1673424903589,3.71590716,17449.0,17448.0,0.001]
[1673424904650,3.71557074,17449.0,17448.0,0.001]
[1673424904904,3.37222721,17449.0,17448.0,0.001]
[1673424905157,3.10623087,17449.0,17448.0,0.001]
[1673424905448,2.95544927,17449.0,17448.0,0.001]
[1673424908533,3.77068538,17449.0,17448.0,0.001]
[1673424908789,4.12970338,17449.0,17448.0,0.001]
[1673424909052,3.61446727,17449.0,17448.0,0.001]
[1673424909326,2.95544927,17449.0,17448.0,0.001]
[1673424910111,3.25544927,17449.0,17448.0,0.001]
[1673424911140,3.61446727,17449.0,17448.0,0.001]
[1673424911979,3.25544927,17449.0,17448.0,0.001]
[1673424912206,3.61446727,17449.0,17448.0,0.001]
[1673424915038,3.61446727,17449.0,17448.0,0.00092538]
[1673424918132,3.31446727,17449.0,17448.0,0.00092538]
[1673424918383,3.61446727,17449.0,17448.0,0.00092538]
[1673424919668,3.32790727,17449.0,17448.0,0.00092538]
[1673424921679,3.61446727,17449.0,17448.0,0.00092538]
[1673424924749,4.13795377,17449.0,17448.0,0.00092538]
[1673424925023,3.61446727,17449.0,17448.0,0.00092538]
[1673424925504,3.31446727,17449.0,17448.0,0.00092538]
[1673424926328,3.61446727,17449.0,17448.0,0.00092538]
[1673424927884,3.31446727,17449.0,17448.0,0.00092538]
[1673424928131,3.61446727,17449.0,17448.0,0.00092538]
[1673424928398,4.19701836,17449.0,17448.0,0.00092538]
[1673424928939,3.31446727,17449.0,17448.0,0.00092538]
[1673424929431,3.61446727,17449.0,17448.0,0.00092538]
[1673424930662,4.10975345,17449.0,17448.0,0.00092538]
[1673424930915,3.61446727,17449.0,17448.0,0.00092538]
[1673424933173,4.12970338,17449.0,17448.0,0.000644]
[1673424936984,4.44275644,17449.0,17448.0,0.000644]
[1673424937505,4.12970338,17449.0,17448.0,0.000644]
[1673424938553,3.96560338,17449.0,17448.0,0.000644]
[1673424938867,3.83622561,17449.0,17448.0,0.000644]
[1673424939585,3.99922561,17449.0,17448.0,0.000644]
[1673424940385,3.99922561,17449.0,17447.0,0.00587109]
[1673424940602,3.04103095,17449.0,17448.0,0.001]
[1673424940857,0.58657,17448.0,17447.0,0.00587109]
[1673424941102,4.04323023,17448.0,17447.0,0.00587109]
[1673424941595,4.04323023,17448.0,17447.0,0.00687109]
[1673424941837,4.04323023,17448.0,17447.0,0.00587109]
[1673424941838,5.20193023,17448.0,17447.0,0.00587109]
[1673424942595,6.39667299,17448.0,17447.0,0.00587109]
[1673424942844,6.58905063,17448.0,17447.0,0.00687109]
[1673424943106,6.00930211,17448.0,17447.0,0.00687109]
[1673424943366,6.58905063,17448.0,17447.0,0.00687109]
[1673424945882,6.27627994,17448.0,17447.0,0.00687109]
[1673424946129,5.69653142,17448.0,17447.0,0.00687109]
[1673424946384,6.27627994,17448.0,17447.0,0.00687109]
[1673424946636,5.69653142,17448.0,17447.0,0.00687109]
[1673424946888,6.27627994,17448.0,17447.0,0.00687109]
[1673424947651,6.27627994,17448.0,17447.0,0.00317743]
[1673424948190,6.27627994,17448.0,17447.0,4.3e-07]
[1673424948448,6.27627994,17448.0,17446.0,0.00128141]
[1673424948449,0.4,17447.0,17446.0,0.00128141]
[1673424948706,4.3446788,17447.0,17446.0,0.00128141]
[1673424949468,3.82266538,17447.0,17446.0,0.00128141]
[1673424949723,4.2078307,17447.0,17446.0,0.00128141]
[1673424949978,3.6939038,17447.0,17446.0,0.00128141]
[1673424950236,3.95658839,17447.0,17446.0,0.00128141]
[1673424951502,3.95652304,17447.0,17446.0,0.00128141]
[1673424951767,3.97273987,17447.0,17446.0,0.00128141]
[1673424952024,3.97452239,17447.0,17446.0,0.00128141]
[1673424952282,4.46533754,17447.0,17446.0,0.00128141]
[1673424952535,4.85080375,17447.0,17446.0,0.00128141]
[1673424952820,4.33695384,17447.0,17446.0,0.00128141]
[1673424953322,0.4,17446.0,17445.0,0.00074316]
[1673424953583,3.40419584,17446.0,17445.0,0.00074316]
[1673424953842,3.71897584,17446.0,17445.0,0.00074316]
[1673424954102,4.60920584,17446.0,17445.0,0.00074316]
[1673424954365,4.66658348,17446.0,17445.0,0.00074316]
[1673424955695,4.5391286,17446.0,17445.0,0.00074316]
[1673424955927,4.5391286,17446.0,17444.0,0.00853322]
[1673424955928,0.4,17445.0,17444.0,0.00853322]
[1673424956194,3.84805838,17445.0,17444.0,0.00853322]
[1673424956737,4.41908834,17445.0,17444.0,0.00853322]
[1673424956954,4.60541099,17445.0,17444.0,0.00853322]
[1673424957222,4.44211791,17445.0,17444.0,0.00853322]
[1673424957484,4.5692433,17445.0,17444.0,0.00853322]
[1673424957749,4.0559426,17445.0,17444.0,0.00853322]
[1673424958070,5.05994506,17445.0,17444.0,0.00853322]
[1673424958247,5.19594506,17445.0,17444.0,0.00853322]
[1673424958500,4.78256505,17445.0,17444.0,0.00853322]
[1673424958754,4.40526435,17445.0,17444.0,0.00853322]
[1673424959772,4.92034757,17445.0,17444.0,0.00853322]
[1673424960044,4.40704687,17445.0,17444.0,0.00853322]
[1673424961083,4.11259828,17445.0,17444.0,0.00853322]
[1673424961343,4.45473383,17445.0,17444.0,0.00853322]
[1673424962357,4.44701072,17445.0,17444.0,0.00853322]
[1673424962616,3.83729649,17445.0,17444.0,0.00853322]
[1673424962873,4.3384879,17445.0,17444.0,0.00853322]
[1673424963123,4.33956047,17445.0,17444.0,0.00853322]
[1673424963379,4.11160095,17445.0,17444.0,0.00840002]
[1673424963639,4.33996537,17445.0,17444.0,0.00840002]
[1673424963901,4.11160095,17445.0,17444.0,0.00840002]
[1673424964949,4.77427897,17445.0,17444.0,0.00840002]
[1673424965234,4.17945047,17445.0,17444.0,0.00840002]
[1673424965791,3.87945047,17445.0,17444.0,0.00840002]
[1673424966021,4.40692561,17445.0,17444.0,0.00840002]
[1673424966274,4.70692561,17445.0,17444.0,0.00840002]
[1673424966801,4.36477638,17445.0,17444.0,0.00840002]
[1673424967579,4.70699005,17445.0,17444.0,0.00840002]
[1673424967837,5.15938929,17445.0,17444.0,0.00840002]
[1673424968379,4.81717562,17445.0,17444.0,0.00840002]
[1673424968903,5.15940118,17445.0,17444.0,0.00840002]
[1673424969182,5.159499,17445.0,17444.0,0.00840002]
[1673424970714,4.51717562,17445.0,17444.0,0.00840002]
[1673424970964,4.63275974,17445.0,17444.0,0.00840002]
[1673424971222,5.15969889,17445.0,17444.0,0.00840002]
[1673424971479,4.81722307,17445.0,17444.0,0.00840002]
[1673424972297,4.36482383,17445.0,17444.0,0.00840002]
[1673424972762,3.93717481,17445.0,17444.0,0.00840002]
[1673424975335,3.93717481,17445.0,17444.0,0.00584632]
[1673424975579,4.45047551,17445.0,17444.0,0.00584632]
[1673424975833,4.61457551,17445.0,17444.0,0.00584632]
[1673424980225,5.19396657,17445.0,17444.0,0.00584632]
[1673424982288,5.34492866,17445.0,17444.0,0.00584632]
[1673424982595,5.28755102,17445.0,17444.0,0.00584632]
[1673424982822,5.86729954,17445.0,17444.0,0.00584632]
[1673424983085,6.46124721,17445.0,17444.0,0.00404632]